Workbook

Sheet Instructions
B2: Financial Analysis Template - Evidence Centre - Instructions
B4: 0. Purpose
C5: The purpose of this financial template is to ensure that applicants have the capacity and financial stability to service a grant of this size and nature. By entering metrics from applicant's financial statements, thresholds are calculated which assess the financial health of the organisation (with a Red/Amber/Green rating) and therefore the risk exposure to the grant funder. Any red ratings must be justifiably explained in the supporting commentary in order to provide confidence that the applicant has the financial stability to service the contract.
B7: 1. Financial Template
C8: All entities (excluding subcontractors) must fill in a financial template. Two templates are provided: a. Private Limited Company / Publically Listed Company b. Not for Profit/Voluntary Organisation Each template has fields appropriate to each organisation, and associated metrics
B10: 2. Thresholds
C11: Standard thresholds are defined based on the UK Government Financial Viability Risk Assessment as per the UK Government Sourcing and Consultancy Playbook: https://www.gov.uk/government/publications/the-sourcing-and-consultancy-playbooks Thresholds are as follows:
D12: Red | E12: Amber | F12: Green
C13: Turnover Ratio | D13: 1.5 | F13: 2 | G13: Higher the better
C14: Operating Margin | D14: 0.05 | F14: 0.1 | G14: Higher the better
C15: Cash Ratio | D15: 1 | F15: 1 | G15: Higher the better
C16: Debt Ratio | D16: 1.2 | F16: 1 | G16: Lower the better
C17: Acid Ratio | D17: 0.8 | F17: 1 | G17: Higher the better
C18: Net Asset Value | D18: 0 | F18: 0 | G18: Higher the better
C19: Net Debt to EBITDA Ratio | D19: 3.5 | F19: 2.5 | G19: Lower the better
C20: Net Debt + Net Pension to EBITDA Ratio | D20: 5 | F20: 4 | G20: Lower the better
C21: Interest Cover | D21: 3 | F21: 4.5 | G21: Higher the better
B23: 3. Explanation
C25: For all metrics which are measured either Amber or Red, please provide justification for these figures in the 'explanation' tab. Achieving a 'Red' in any metric does not mean that the applicant will be automatically excluded from the competition. Adverse metrics are expected to be discussed through a dialogue process.
B26: 4. Checklist
C28: A checklist has been included for information - applicants are NOT EXPECTED to fill this in. These are the areas that will be checked during evaluation of the financial template. The grant funder may come back to applicants requesting additional information, based on questions in the checklist.
B30: 5. Worked Example
C32: A worked example has been filled in to aid understanding of the template.
C34: Note: if your profit and loss data represents a period other than 12 months, please present your best 12 month estimate and explain how this was calculated.

Sheet Private Company >>

Sheet Template a
L1: v0.4
A5: Company Name:
A6: Date:
B9: Approximate Annual Grant Value (£000s) | C9: 1000 | E9: Fixed Cell based on estimated grant value
B10: Approximate percentage share of partner | C10: 0.5
C12: RAG Rating | E12: RAG Rating | G12: RAG Rating
C13: 2018/19 | E13: 2019/20 | G13: 2020/21
B14: Turnover Ratio | C14: =C30/($C$9*$C$10) -> 2.668 | E14: =E30/($C$9*$C$10) -> 0 | G14: =G30/($C$9*$C$10) -> 0 | H14: Ratio of company turnover to grant size
B15: Operating Margin | C15: =C39/C30 -> 0.06896551724 | E15: =E39/E30 ->  | G15: =G39/G30 ->  | H15: Percentage operating margin
B16: Cash Ratio | C16: =C145 -> 0.2 | E16: =E145 ->  | G16: =G145 ->  | H16: Ratio of cash and equivalents over current liabilities
B17: Debt Ratio | C17: =C146 -> 1.050420168 | E17: =E146 ->  | G17: =G146 ->  | H17: Ratio of liabilities (exc. Pension) over total Assets
B18: Acid Ratio | C18: =C144 -> 0.68 | E18: =E144 ->  | G18: =G144 ->  | H18: Total current assets over Total current liabilities
B19: Net Asset Value | C19: =C111 -> 304 | E19: =E111 -> 0 | G19: =G111 -> 0 | H19: Total assets minus total liabilities
B20: Net Debt to EBITDA Ratio | C20: =C147 -> 0.5597014925 | E20: =E147 ->  | G20: =G147 ->  | H20: Net debt divided by EBITDA
B21: Net Debt + Net Pension to EBITDA Ratio | C21: =C148 -> 1.007462687 | E21: =E148 ->  | G21: =G148 ->  | H21: (Net debt add net pension liability) divided by EBITDA
B22: Interest Cover | C22: =C149 -> 9.2 | E22: =E149 ->  | G22: =G149 ->  | H22: Earnings before interest and tax / net interest paid
C25: 2018/19 | E25: 2019/20 | G25: 2020/21
C26: £'000 | E26: £'000 | G26: £'000
B28: Income/(Expenditure)
B30: Revenue | C30: 1334 | E30: 0 | G30: 0
B31: Cost of sales | C31: -1000 | E31: 0 | G31: 0
B32: Gross Profit | C32: =SUM(C30:C31) -> 334 | E32: =SUM(E30:E31) -> 0 | G32: =SUM(G30:G31) -> 0
B34: Other operating income/(expense)
B35: Admin expenses | C35: -200 | E35: 0 | G35: 0
B36: Depreciation | C36: -30 | E36: 0 | G36: 0
B37: Amortisation | C37: -12
B38: Other operating income/(expense) | C38: 0 | E38: 0 | G38: 0
B39: Operating Profit | C39: =SUM(C32:C38) -> 92 | E39: =SUM(E32:E38) -> 0 | G39: =SUM(G32:G38) -> 0
B41: Other income/(expense)
B42: Interest paid | C42: -70 | E42: 0 | G42: 0
B43: Interest income | C43: 60 | E43: 0 | G43: 0
B44: Other income/(expense) | C44: 0 | E44: 0 | G44: 0
B45: Profit Before Tax | C45: =SUM(C39:C44) -> 82 | E45: =SUM(E39:E44) -> 0 | G45: =SUM(G39:G44) -> 0
B47: Income (Tax)/Credit | C47: -25 | E47: 0 | G47: 0
B48: Profit After Tax | C48: =SUM(C45:C47) -> 57 | E48: =SUM(E45:E47) -> 0 | G48: =SUM(G45:G47) -> 0
B50: Other comprehensive income/(expense) and dividends
B51: Other comprehensive income | C51: 0 | E51: 0 | G51: 0
B52: Dividends | C52: 0 | E52: 0 | G52: 0
B53: Other | C53: 0 | E53: 0 | G53: 0
B54: Retained Profit | C54: =SUM(C48:C53) -> 57 | E54: =SUM(E48:E53) -> 0 | G54: =SUM(G48:G53) -> 0
B56: Headline Trends
B58: % Annual Revenue Growth | E58: =(E30/C30)-1 -> -1 | G58: =(G30/E30)-1 -> 
B59: % Annual Operating Profit Growth | E59: =(E39/C39)-1 -> -1 | G59: =(G39/E39)-1 -> 
B60: % Annual Profit Before Tax Growth | E60: =(E45/C45)-1 -> -1 | G60: =(G45/E45)-1 -> 
B62: Assets and Liabilities
B64: Non-current assets
B65: Property, plant and equipment | C65: 5 | E65: 0 | G65: 0
B66: Intangible assets | C66: 7 | E66: 0 | G66: 0
B67: Investments | C67: 2 | E67: 0 | G67: 0
B68: Trade and other receivables | C68: 0 | E68: 0 | G68: 0
B69: Deferred tax assets | C69: 10 | E69: 0 | G69: 0
B70: Pension asset | C70: 10 | E70: 0 | G70: 0
B71: Other non-current assets | C71: 0 | E71: 0 | G71: 0
B73: Total Non-Current Assets | C73: =SUM(C65:C71) -> 34 | E73: =SUM(E65:E71) -> 0 | G73: =SUM(G65:G71) -> 0
B75: Current assets
B76: Trade and other receivables | C76: 50 | E76: 0 | G76: 0
B77: Investments | C77: 10 | E77: 0 | G77: 0
B78: Cash and cash equivalents | C78: 25 | E78: 0 | G78: 0
B79: Inventories | C79: 10 | E79: 0 | G79: 0
B80: Other current assets | C80: 0 | E80: 0 | G80: 0
B82: Total Current Assets | C82: =SUM(C76:C80) -> 95 | E82: =SUM(E76:E80) -> 0 | G82: =SUM(G76:G80) -> 0
B84: Total Assets | C84: =SUM(C73,C82) -> 129 | E84: =SUM(E73,E82) -> 0 | G84: =SUM(G73,G82) -> 0
B86: Current liabilities
B87: Trade and other payables | C87: 0 | E87: 0 | G87: 0
B88: Provisions | C88: 0 | E88: 0 | G88: 0
B89: Current tax payable | C89: -15 | E89: 0 | G89: 0
B90: Deferred income | C90: 0 | E90: 0 | G90: 0
B91: Bank overdraft | C91: -10 | E91: 0 | G91: 0
B92: Intercompany borrowings | C92: -100 | E92: 0 | G92: 0
B93: External borrowings | C93: 0 | E93: 0 | G93: 0
B94: Other current liabilities | C94: 0 | E94: 0 | G94: 0
B96: Total Current Liabilities | C96: =SUM(C87:C94) -> -125 | E96: =SUM(E87:E94) -> 0 | G96: =SUM(G87:G94) -> 0
B98: Non-current liabilities
B99: Trade and other payables | C99: 0 | E99: 0 | G99: 0
B100: Provisions | C100: 0 | E100: 0 | G100: 0
B101: Intercompany borrowings | C101: 0 | E101: 0 | G101: 0
B102: External borrowings | C102: 0 | E102: 0 | G102: 0
B103: Employee benefits | C103: -50 | E103: 0 | G103: 0
B104: Deferred tax liabilities | C104: 0 | E104: 0 | G104: 0
B105: Other non-current liabilities | C105: 0 | E105: 0 | G105: 0
B107: Total Non-Current Liabilities | C107: =SUM(C99:C105) -> -50 | E107: =SUM(E99:E105) -> 0 | G107: =SUM(G99:G105) -> 0
B109: Total Liabilities | C109: =SUM(C96,C107) -> -175 | E109: =SUM(E96,E107) -> 0 | G109: =SUM(G96,G107) -> 0
B111: Total Net Assets | C111: =C84-C109 -> 304 | E111: =E84-E109 -> 0 | G111: =G84-G109 -> 0
B114: Cash Flow and Liquidity
B116: Net Cash Flow From Operating Activities | C116: 0 | E116: 0 | G116: 0
B118: Investing activities
B119: Purchases of property, plant and equipment | C119: 0 | E119: 0 | G119: 0
B120: Proceeds from sale of property, plant and equipment | C120: 0 | E120: 0 | G120: 0
B121: Purchases of intangible assets | C121: 0 | E121: 0 | G121: 0
B122: Other cash flows from investing activities | C122: 0 | E122: 0 | G122: 0
B124: Net Cash Flows From Investing Activities | C124: =SUM(C119:C122) -> 0 | E124: =SUM(E119:E122) -> 0 | G124: =SUM(G119:G122) -> 0
B126: Financing activities
B127: Dividends paid | C127: 0 | E127: 0 | G127: 0
B128: Repayment of borrowings | C128: 0 | E128: 0 | G128: 0
B129: Other cash flows from financing activities | C129: 0 | E129: 0 | G129: 0
B131: Net Cash Flows From Financing Activities | C131: =SUM(C127:C129) -> 0 | E131: =SUM(E127:E129) -> 0 | G131: =SUM(G127:G129) -> 0
B133: Net Increase/Decrease in Cash and Equivalents | C133: =SUM(C131,C124,C116) -> 0 | E133: =SUM(E131,E124,E116) -> 0 | G133: =SUM(G131,G124,G116) -> 0
B135: Cash and Equivalents Brought Forwards | C135: 0 | E135: 0 | G135: 0
B137: Cash and Equivalents Carried Forwards | C137: =C135+C133 -> 0 | E137: =E135+E133 -> 0 | G137: =G135+G133 -> 0
B139: Net Debt | C139: =((C91+C92+C93+C101+C102)*-1)-(C78+C77) -> 75 | E139: =((E91+E92+E93+E101+E102)*-1)-(E78+E77) -> 0 | G139: =((G91+G92+G93+G101+G102)*-1)-(G78+G77) -> 0
B140: Net Pension Deficit | C140: =((C103*-1)+C70) -> 60 | E140: =((E103*-1)+E70) -> 0 | G140: =((G103*-1)+G70) -> 0
B141: EBITDA | C141: =(C39-C36-C37) -> 134 | E141: =(E39-E36-E37) -> 0 | G141: =(G39-G36-G37) -> 0
B143: Current Ratio | C143: =ABS(C82/C96) -> 0.76 | E143: =ABS(E82/E96) ->  | G143: =ABS(G82/G96) -> 
B144: Acid Ratio | C144: =(C82-C79)/(C96*-1) -> 0.68 | E144: =(E82-E79)/(E96*-1) ->  | G144: =(G82-G79)/(G96*-1) -> 
B145: Cash Ratio | C145: =ABS(C78/C96) -> 0.2 | E145: =ABS(E78/E96) ->  | G145: =ABS(G78/G96) -> 
B146: Debt Ratio (Excl. Pension Liabilities) | C146: =(((C109-C103)*-1))/(C84-C70) -> 1.050420168 | E146: =(((E109-E103)*-1))/(E84-E70) ->  | G146: =(((G109-G103)*-1))/(G84-G70) -> 
B147: Net Debt to EBITDA Ratio | C147: =C139/C141 -> 0.5597014925 | E147: =E139/E141 ->  | G147: =G139/G141 -> 
B148: Net Debt + Net Pension to EBITDA Ratio | C148: =(C139+C140)/C141 -> 1.007462687 | E148: =(E139+E140)/E141 ->  | G148: =(G139+G140)/G141 -> 
B149: Interest Cover | C149: =C39/((C42+C43)*-1) -> 9.2 | E149: =E39/((E42+E43)*-1) ->  | G149: =G39/((G42+G43)*-1) -> 
B153: Have these accounts been audited? (Yes/No)
B154: Was the audit report modified? (Yes/No)
B155: Are there any post balance sheet events that could be expected to materially alter the ratios above? If so, please explain and manually adjust.

Sheet Template a Explanation
B2: Due Diligence - Financial Analysis Justification Template a
B4: Metric | C4: Description | D4: RAG Rating | E4: Justification
B5: Turnover Ratio | C5: ='Template b'!C12 -> Ratio of company turnover to grant size | D5: R/A/G
B6: Operating Margin | C6: ='Template b'!C13 -> Percentage operating margin | D6: R/A/G
B7: Cash Ratio | C7: Ratio of cash and equivalents over current liabilities | D7: R/A/G
B8: Debt Ratio | C8: ='Template b'!C15 -> Ratio of liabilities (exc. Pension) over total Assets | D8: R/A/G
B9: Acid Ratio | C9: ='Template b'!C16 -> Total current assets over Total current liabilities | D9: R/A/G
B10: Net Asset Value | C10: ='Template b'!C17 -> Total assets minus total liabilities | D10: R/A/G
B11: Net Debt to EBITDA Ratio | C11: Net debt divided by EBITDA | D11: R/A/G
B12: Net Debt + Net Pension to EBITDA Ratio | C12: (Net debt add net pension liability) divided by EBITDA | D12: R/A/G
B13: Interest Cover | C13: Earnings before interest and tax / net interest paid | D13: R/A/G

Sheet Not for Profit >>

Sheet Template b
X1: v0.4
A5: Charity Name:
A6: Date:
B9: Approximate Annual Grant Value (£000s) | C9: 1000
B10: Approximate percentage share of partner | C10: 0.5 | F10: RAG Rating | K10: RAG Rating | P10: RAG Rating
F11: 2018/19 | K11: 2019/20 | P11: 2020/21
B12: Turnover Ratio | C12: Ratio of company turnover to grant size | F12: =F25/($C$9*$C$10) -> 0 | K12: =K25/($C$9*$C$10) -> 0 | P12: =P25/($C$9*$C$10) -> 0
B13: Operating Margin | C13: Percentage operating margin | F13: =IF((F28/F25)-1<0,(F28/F25)+1,(F28/F25)-1) ->  | K13: =IF((K28/K25)-1<0,(K28/K25)+1,(K28/K25)-1) ->  | P13: =IF((P28/P25)-1<0,(P28/P25)+1,(P28/P25)-1) -> 
B14: Cash Ratio | C14: Ratio of cash and equivalents over liabilities | F14: =F171 ->  | K14: =K171 ->  | P14: =P171 -> 
B15: Debt Ratio | C15: Ratio of liabilities (exc. Pension) over total Assets | F15: =F144 ->  | K15: =K144 ->  | P15: =P144 -> 
B16: Current Acid Ratio | C16: Total current assets over Total current liabilities | F16: =F169 ->  | K16: =K169 ->  | P16: =P169 -> 
B17: Net Asset Value | C17: Total assets minus total liabilities | F17: =F127 -> 0 | K17: =K127 -> 0 | P17: =P127 -> 0
C20: 2018/19 | H20: 2019/20 | M20: 2020/21 | R20: Total Funds
C21: Unrestricted £'000 | D21: Designated £'000 | E21: Restricted £'000 | F21: Total Funds £'000 | H21: Unrestricted £'000 | I21: Designated £'000 | J21: Restricted £'000 | K21: Total Funds £'000 | M21: Unrestricted £'000 | N21: Designated £'000 | O21: Restricted £'000 | P21: Total Funds £'000 | R21: Last Year Variance £'000 | S21: 3 Year Variance £'000 | T21: 3 Year Average £'000
B23: Headline Income/(Expenditure)
B25: Total Income | C25: 0 | D25: 0 | E25: 0 | F25: =SUM(C25:E25) -> 0 | H25: 0 | I25: 0 | J25: 0 | K25: =SUM(H25:J25) -> 0 | M25: 0 | N25: 0 | O25: 0 | P25: =SUM(M25:O25) -> 0 | R25: =P25-K25 -> 0 | S25: =P25-F25 -> 0 | T25: =AVERAGE(P25,K25,F25) -> 0
B26: Total Expenditure | C26: 0 | D26: 0 | E26: 0 | F26: =SUM(C26:E26) -> 0 | H26: 0 | I26: 0 | J26: 0 | K26: =SUM(H26:J26) -> 0 | M26: 0 | N26: 0 | O26: 0 | P26: =SUM(M26:O26) -> 0 | R26: =P26-K26 -> 0 | S26: =P26-F26 -> 0 | T26: =AVERAGE(P26,K26,F26) -> 0
B28: Net Income/Expenditure | C28: =SUM(C25:C26) -> 0 | D28: =SUM(D25:D26) -> 0 | E28: =SUM(E25:E26) -> 0 | F28: =SUM(C28:E28) -> 0 | H28: =SUM(H25:H26) -> 0 | I28: =SUM(I25:I26) -> 0 | J28: =SUM(J25:J26) -> 0 | K28: =SUM(H28:J28) -> 0 | M28: =SUM(M25:M26) -> 0 | N28: =SUM(N25:N26) -> 0 | O28: =SUM(O25:O26) -> 0 | P28: =SUM(M28:O28) -> 0 | R28: =P28-K28 -> 0 | S28: =P28-F28 -> 0 | T28: =AVERAGE(P28,K28,F28) -> 0
B30: Taxation | C30: 0 | D30: 0 | E30: 0 | F30: =SUM(C30:E30) -> 0 | H30: 0 | I30: 0 | J30: 0 | K30: =SUM(H30:J30) -> 0 | M30: 0 | N30: 0 | O30: 0 | P30: =SUM(M30:O30) -> 0 | R30: =P30-K30 -> 0 | S30: =P30-F30 -> 0 | T30: =AVERAGE(P30,K30,F30) -> 0
B31: Gains/Losses on Investments | C31: 0 | D31: 0 | E31: 0 | F31: 0 | H31: 0 | I31: 0 | J31: 0 | K31: 0 | M31: 0 | N31: 0 | O31: 0 | P31: 0 | R31: =P31-K31 -> 0 | S31: =P31-F31 -> 0 | T31: =AVERAGE(P31,K31,F31) -> 0
B32: Other Gains/Losses | C32: 0 | D32: 0 | E32: 0 | F32: 0 | H32: 0 | I32: 0 | J32: 0 | K32: 0 | M32: 0 | N32: 0 | O32: 0 | P32: 0 | R32: =P32-K32 -> 0 | S32: =P32-F32 -> 0 | T32: =AVERAGE(P32,K32,F32) -> 0
B33: Transfer Between Funds | C33: 0 | D33: 0 | E33: 0 | F33: 0 | H33: 0 | I33: 0 | J33: 0 | K33: 0 | M33: 0 | N33: 0 | O33: 0 | P33: 0 | R33: 0 | S33: 0 | T33: 0
B35: Net Movement in Funds | C35: =SUM(C30:C33,C28) -> 0 | D35: =SUM(D30:D33,D28) -> 0 | E35: =SUM(E30:E33,E28) -> 0 | F35: =SUM(C35:E35) -> 0 | H35: =SUM(H30:H33,H28) -> 0 | I35: =SUM(I30:I33,I28) -> 0 | J35: =SUM(J30:J33,J28) -> 0 | K35: =SUM(H35:J35) -> 0 | M35: =SUM(M30:M33,M28) -> 0 | N35: =SUM(N30:N33,N28) -> 0 | O35: =SUM(O30:O33,O28) -> 0 | P35: =SUM(M35:O35) -> 0 | R35: =P35-K35 -> 0 | S35: =P35-F35 -> 0 | T35: =AVERAGE(P35,K35,F35) -> 0
B37: Funds Brought Forwards | D37: =#REF! ->  | F37: =SUM(C37:E37) ->  | I37: =D39 ->  | K37: =SUM(H37:J37) ->  | M37: =H39 -> 0 | N37: =I39 ->  | O37: =J39 -> 0 | P37: =SUM(M37:O37) ->  | R37: =P37-K37 ->  | S37: =P37-F37 ->  | T37: =AVERAGE(P37,K37,F37) -> 
B38: Net Movement in Funds | C38: =C35 -> 0 | D38: 0 | E38: 0 | F38: 0 | H38: =H35 -> 0 | I38: 0 | J38: 0 | K38: 0 | M38: =M35 -> 0 | N38: 0 | O38: 0 | P38: 0 | R38: 0 | S38: 0 | T38: 0
B39: Funds Carried forwards | C39: =C37+C38 -> 0 | D39: =D37+D38 ->  | E39: =E37+E38 -> 0 | H39: =H37+H38 -> 0 | I39: =I37+I38 ->  | J39: =J37+J38 -> 0 | M39: =M37+M38 -> 0 | N39: =N37+N38 ->  | O39: =O37+O38 -> 0
B41: Net Inc/Exp as % of Total Income | C41: =C28/C25 ->  | D41: =D28/D25 ->  | H41: =H28/H25 ->  | I41: =I28/I25 ->  | M41: =M28/M25 ->  | N41: =N28/N25 ->  | R41: =P41-K41 ->  | S41: =P41-F41 ->  | T41: =AVERAGE(P41,K41,F41) -> 
B42: Net Inc/Exp as % of Funds Carried | C42: =C28/C39 ->  | D42: =D28/D39 ->  | H42: =H28/H39 ->  | I42: =I28/I39 ->  | M42: =M28/M39 ->  | N42: =N28/N39 -> 
B44: Headline Trends
B46: % Annual Income Growth | C46: =(C25/#REF!)-1 ->  | D46: =(D25/#REF!)-1 ->  | E46: =(E25/#REF!)-1 ->  | H46: =(H25/C25)-1 ->  | I46: =(I25/D25)-1 ->  | J46: =(J25/E25)-1 ->  | M46: =(M25/H25)-1 ->  | N46: =(N25/I25)-1 ->  | O46: =(O25/J25)-1 ->  | P46: =(P25/K25)-1 ->  | R46: =P46-K46 ->  | S46: =P46-F46 ->  | T46: =AVERAGE(P46,K46,F46) -> 
B47: % Annual Expenditure Growth | C47: =(C26/#REF!)-1 ->  | D47: =(D26/#REF!)-1 ->  | E47: =(E26/#REF!)-1 ->  | H47: =(H26/C26)-1 ->  | I47: =(I26/D26)-1 ->  | M47: =(M26/H26)-1 ->  | N47: =(N26/I26)-1 ->  | O47: =(O26/J26)-1 ->  | P47: =(P26/K26)-1 ->  | R47: =P47-K47 ->  | S47: =P47-F47 ->  | T47: =AVERAGE(P47,K47,F47) -> 
B48: % Fund Growth | C48: =(C39/#REF!)-1 ->  | D48: =(D39/#REF!)-1 ->  | E48: =(E39/#REF!)-1 ->  | H48: =(H39/C39)-1 ->  | I48: =(I39/D39)-1 ->  | M48: =(M39/H39)-1 ->  | N48: =(N39/I39)-1 ->  | O48: =(O39/J39)-1 ->  | P48: =(P39/K39)-1 -> 
B50: Income Review
B52: Fundraised Income | C52: 0 | D52: 0 | E52: 0 | F52: =SUM(C52:E52) -> 0 | H52: 0 | I52: 0 | J52: 0 | K52: =SUM(H52:J52) -> 0 | M52: 0 | N52: 0 | O52: 0 | P52: =SUM(M52:O52) -> 0 | R52: =P52-K52 -> 0 | S52: =P52-F52 -> 0 | T52: =AVERAGE(P52,K52,F52) -> 0
B53: Other Voluntary Income | C53: 0 | D53: 0 | E53: 0 | F53: 0 | H53: 0 | I53: 0 | J53: 0 | K53: 0 | M53: 0 | N53: 0 | O53: 0 | P53: 0 | R53: =P53-K53 -> 0 | S53: =P53-F53 -> 0 | T53: =AVERAGE(P53,K53,F53) -> 0
B54: Charitable Activities | C54: 0 | D54: 0 | E54: 0 | F54: 0 | H54: 0 | I54: 0 | J54: 0 | K54: 0 | M54: 0 | N54: 0 | O54: 0 | P54: 0 | R54: 0 | S54: 0 | T54: 0
B55: Other Trading Activities | C55: 0 | D55: 0 | E55: 0 | F55: 0 | H55: 0 | I55: 0 | J55: 0 | K55: 0 | M55: 0 | N55: 0 | O55: 0 | P55: 0 | R55: 0 | S55: 0 | T55: 0
B56: Investments | C56: 0 | D56: 0 | E56: 0 | F56: 0 | H56: 0 | I56: 0 | J56: 0 | K56: 0 | M56: 0 | N56: 0 | O56: 0 | P56: 0 | R56: 0 | S56: 0 | T56: 0
B57: Other Income | C57: 0 | D57: 0 | E57: 0 | F57: 0 | H57: 0 | I57: 0 | J57: 0 | K57: 0 | M57: 0 | N57: 0 | O57: 0 | P57: 0 | R57: 0 | S57: 0 | T57: 0
B59: Total Income | C59: =SUM(C52:C57) -> 0 | D59: 0 | E59: =SUM(E52:E57) -> 0 | F59: =SUM(C59:E59) -> 0 | H59: =SUM(H52:H57) -> 0 | I59: =SUM(I52:I57) -> 0 | J59: =SUM(J52:J57) -> 0 | K59: 0 | M59: =SUM(M52:M57) -> 0 | N59: =SUM(N52:N57) -> 0 | O59: =SUM(O52:O57) -> 0 | P59: 0 | R59: 0 | S59: 0 | T59: 0
B61: Income as % of Fund Income
B63: Fundraised Income | C63: =C52/C$59 ->  | H63: =H52/H$59 ->  | M63: =M52/M$59 ->  | R63: =P63-K63 ->  | S63: =P63-F63 ->  | T63: =AVERAGE(P63,K63,F63) -> 
B64: Other Voluntary Income | C64: =C53/C$59 ->  | R64: =P64-K64 ->  | S64: =P64-F64 ->  | T64: =AVERAGE(P64,K64,F64) -> 
B65: Charitable Activities | C65: =C54/C$59 ->  | F65: =F54/F$59 ->  | H65: =H54/H$59 ->  | K65: =K54/K$59 ->  | M65: =M54/M$59 ->  | P65: =P54/P$59 -> 
B66: Other Trading Activities | C66: =C55/C$59 ->  | D66: =D55/D$59 ->  | F66: =F55/F$59 ->  | H66: =H55/H$59 ->  | I66: =I55/I$59 ->  | K66: =K55/K$59 ->  | M66: =M55/M$59 ->  | N66: =N55/N$59 ->  | P66: =P55/P$59 -> 
B67: Investments | C67: =C56/C$59 ->  | H67: =H56/H$59 ->  | M67: =M56/M$59 -> 
B68: Other Income | C68: =C57/C$59 ->  | H68: =H57/H$59 ->  | M68: =M57/M$59 -> 
B70: Fund Income as % of Total Income | C70: =C59/$K59 ->  | D70: =D59/$K59 ->  | F70: =F59/$K59 ->  | H70: =H59/$K59 ->  | I70: =I59/$K59 ->  | K70: =K59/$K59 ->  | M70: =M59/$P59 ->  | N70: =N59/$P59 ->  | R70: =P70-K70 ->  | S70: =P70-F70 ->  | T70: =AVERAGE(P70,K70,F70) -> 
B72: Expenditure Review
B74: Fundraising Expenditure | C74: 0 | D74: 0 | E74: 0 | F74: =SUM(C74:E74) -> 0 | H74: 0 | I74: 0 | J74: 0 | K74: =SUM(H74:J74) -> 0 | M74: 0 | N74: 0 | O74: 0 | P74: =SUM(M74:O74) -> 0 | R74: =P74-K74 -> 0 | S74: =P74-F74 -> 0 | T74: =AVERAGE(P74,K74,F74) -> 0
B75: Other 'Raising Funds' Expenditure | C75: 0 | D75: 0 | E75: 0 | F75: 0 | H75: 0 | I75: 0 | J75: 0 | K75: 0 | M75: 0 | N75: 0 | O75: 0 | P75: 0 | R75: 0 | S75: 0 | T75: 0
B76: Charitable Activity Expenditure | C76: 0 | D76: 0 | E76: 0 | F76: 0 | H76: 0 | I76: 0 | J76: 0 | K76: 0 | M76: 0 | N76: 0 | O76: 0 | P76: 0 | R76: 0 | S76: 0 | T76: 0
B77: Other Expenditure | C77: 0 | D77: 0 | E77: 0 | F77: 0 | H77: 0 | I77: 0 | J77: 0 | K77: 0 | M77: 0 | N77: 0 | O77: 0 | P77: 0 | R77: =P77-K77 -> 0 | S77: =P77-F77 -> 0 | T77: =AVERAGE(P77,K77,F77) -> 0
B79: Total Expenditure | C79: =SUM(C74:C77) -> 0 | D79: =SUM(D74:D77) -> 0 | E79: =SUM(E74:E77) -> 0 | F79: =SUM(C79:E79) -> 0 | H79: =SUM(H74:H77) -> 0 | I79: =SUM(I74:I77) -> 0 | J79: =SUM(J74:J77) -> 0 | K79: 0 | M79: =SUM(M74:M77) -> 0 | N79: =SUM(N74:N77) -> 0 | O79: =SUM(O74:O77) -> 0 | P79: =SUM(P74:P77) -> 0 | R79: 0 | S79: 0 | T79: 0
B81: Expenditure as % of Total Fund Expenditure
B83: Fundraising Expenditure | C83: =C74/C$79 ->  | H83: =H74/H$79 ->  | M83: =M74/M$79 ->  | R83: =P83-K83 ->  | S83: =P83-F83 ->  | T83: =AVERAGE(P83,K83,F83) -> 
B84: Other 'Raising Funds' Expenditure | C84: =C75/C$79 ->  | T84: =AVERAGE(P84,K84,F84) -> 
B85: Charitable Activity Expenditure | C85: =C76/C$79 -> 
B86: Other Expenditure | C86: =C77/C$79 ->  | R86: =P86-K86 ->  | S86: =P86-F86 ->  | T86: =AVERAGE(P86,K86,F86) -> 
B88: Fund Expenditure as % of Total Expenditure | C88: =C79/$K79 ->  | D88: =D79/$K79 ->  | H88: =H79/$K79 ->  | I88: =I79/$K79 ->  | M88: =M79/$P79 ->  | N88: =N79/$P79 ->  | R88: =P88-K88 ->  | S88: =P88-F88 ->  | T88: =AVERAGE(P88,K88,F88) -> 
B90: Fundraising Ratio | C90: =C52/C74 ->  | D90: =D52/D74 ->  | E90: =E52/E74 ->  | F90: =F52/F74 ->  | H90: =H52/H74 ->  | I90: =I52/I74 ->  | J90: =J52/J74 ->  | M90: =M52/M74 ->  | N90: =N52/N74 ->  | R90: =P90-K90 ->  | S90: =P90-F90 ->  | T90: =AVERAGE(P90,K90,F90) -> 
B92: Assets and Liabilities
B94: Tangible Fixed Assets | F94: 0 | K94: 0 | P94: 0 | R94: =P94-K94 -> 0 | S94: =P94-F94 -> 0 | T94: =AVERAGE(P94,K94,F94) -> 0
B95: Intangible Fixed Assets | F95: 0 | K95: 0 | P95: 0 | R95: 0 | S95: 0 | T95: 0
B96: Non-Current Asset Investments | F96: 0 | K96: 0 | P96: 0 | R96: =P96-K96 -> 0 | S96: =P96-F96 -> 0 | T96: =AVERAGE(P96,K96,F96) -> 0
B98: Total Fixed Assets | F98: =SUM(F94:F96) -> 0 | K98: =SUM(K94:K96) -> 0 | P98: =SUM(P94:P96) -> 0 | R98: =P98-K98 -> 0 | S98: =P98-F98 -> 0 | T98: =AVERAGE(P98,K98,F98) -> 0
B100: Debtors | F100: 0 | K100: 0 | P100: 0 | R100: =P100-K100 -> 0 | S100: =P100-F100 -> 0 | T100: =AVERAGE(P100,K100,F100) -> 0
B101: Current Asset Investments | F101: 0 | K101: 0 | P101: 0 | R101: 0 | S101: 0 | T101: 0
B102: Other Current Assets | F102: 0 | K102: 0 | P102: 0 | R102: 0 | S102: 0 | T102: 0
B103: Cash and Cash Equivalents | F103: 0 | K103: 0 | P103: 0 | R103: =P103-K103 -> 0 | S103: =P103-F103 -> 0 | T103: =AVERAGE(P103,K103,F103) -> 0
B105: Total Current Assets | F105: =SUM(F100:F103) -> 0 | K105: =SUM(K100:K103) -> 0 | P105: =SUM(P100:P103) -> 0 | R105: =P105-K105 -> 0 | S105: =P105-F105 -> 0 | T105: =AVERAGE(P105,K105,F105) -> 0
B107: Total Assets | F107: =SUM(F98,F105) -> 0 | K107: =SUM(K98,K105) -> 0 | P107: =SUM(P98,P105) -> 0 | R107: =P107-K107 -> 0 | S107: =P107-F107 -> 0 | T107: =AVERAGE(P107,K107,F107) -> 0
B109: Creditors: Amounts due within one year | F109: 0 | K109: 0 | P109: 0 | R109: =P109-K109 -> 0 | S109: =P109-F109 -> 0 | T109: =AVERAGE(P109,K109,F109) -> 0
B110: Other Current Liabilities | F110: 0 | K110: 0 | P110: 0 | R110: 0 | S110: 0 | T110: 0
B112: Total Current Liabilities | F112: =SUM(F109:F110) -> 0 | K112: =SUM(K109:K110) -> 0 | P112: =SUM(P109:P110) -> 0 | R112: =P112-K112 -> 0 | S112: =P112-F112 -> 0 | T112: =AVERAGE(P112,K112,F112) -> 0
B114: Creditors: Amounts falling due after one year | F114: 0 | K114: 0 | P114: 0 | R114: =P114-K114 -> 0 | S114: =P114-F114 -> 0 | T114: =AVERAGE(P114,K114,F114) -> 0
B115: Other Non-Current Liabilities | F115: 0 | K115: 0 | P115: 0 | R115: 0 | S115: 0 | T115: 0
B117: Total Non-Current Liabilities | F117: =SUM(F114:F115) -> 0 | K117: =SUM(K114:K115) -> 0 | P117: =SUM(P114:P115) -> 0 | R117: =P117-K117 -> 0 | S117: =P117-F117 -> 0 | T117: =AVERAGE(P117,K117,F117) -> 0
B119: Provisions | F119: 0 | K119: 0 | P119: 0 | R119: =P119-K119 -> 0 | S119: =P119-F119 -> 0 | T119: =AVERAGE(P119,K119,F119) -> 0
B121: Total Liabilities - Excluding Pension | F121: =SUM(F117,F112,F119) -> 0 | K121: =SUM(K117,K112,K119) -> 0 | P121: =SUM(P117,P112,P119) -> 0 | R121: =P121-K121 -> 0 | S121: =P121-F121 -> 0 | T121: =AVERAGE(P121,K121,F121) -> 0
B123: Total Assets Less Liabilities - Excl. Pension | F123: =F107+F121 -> 0 | K123: =K107+K121 -> 0 | P123: =P107+P121 -> 0 | R123: =P123-K123 -> 0 | S123: =P123-F123 -> 0 | T123: =AVERAGE(P123,K123,F123) -> 0
B125: Pension Liability | F125: 0 | K125: 0 | P125: 0 | R125: =P125-K125 -> 0 | S125: =P125-F125 -> 0 | T125: =AVERAGE(P125,K125,F125) -> 0
B127: Total Net Assets | F127: =F123+F125 -> 0 | K127: =K123+K125 -> 0 | P127: =P123+P125 -> 0 | R127: =P127-K127 -> 0 | S127: =P127-F127 -> 0 | T127: =AVERAGE(P127,K127,F127) -> 0
B129: Total Funds | C129: =C39 -> 0 | D129: =D39 ->  | E129: =E39 -> 0 | F129: =SUM(C129:E129) ->  | H129: =H39 -> 0 | I129: =I39 ->  | J129: =J39 -> 0 | K129: =SUM(H129:J129) ->  | M129: =M39 -> 0 | N129: =N39 ->  | O129: =O39 -> 0 | P129: =SUM(M129:O129) ->  | R129: =P129-K129 ->  | S129: =P129-F129 ->  | T129: =AVERAGE(P129,K129,F129) -> 
B131: Basic Reserves (Cur. Assets - Cur. Liabilities) | C131: =C105-C112 -> 0 | D131: =D105-D112 -> 0 | E131: =E105-E112 -> 0 | F131: =F105-F112 -> 0 | H131: =H105-H112 -> 0 | I131: =I105-I112 -> 0 | J131: =J105-J112 -> 0 | K131: =K105-K112 -> 0 | M131: =M105-M112 -> 0 | N131: =N105-N112 -> 0 | O131: =O105-O112 -> 0 | P131: =P105-P112 -> 0 | R131: =P131-K131 -> 0 | S131: =P131-F131 -> 0 | T131: =AVERAGE(P131,K131,F131) -> 0
B133: Months of Fund Expenditure Held | C133: =C131/(C26/12) ->  | D133: =D131/(D26/12) ->  | E133: =E131/(E26/12) ->  | F133: =ABS(F131/(F26/12)) ->  | H133: =H131/(H26/12) ->  | I133: =I131/(I26/12) ->  | J133: =J131/(J26/12) ->  | K133: =ABS(K131/(K26/12)) ->  | M133: =M131/(M26/12) ->  | N133: =N131/(N26/12) ->  | O133: =O131/(O26/12) ->  | P133: =P131/(P26/12) ->  | R133: =P133-K133 ->  | S133: =P133-F133 ->  | T133: =AVERAGE(P133,K133,F133) -> 
B134: Months of Total Expenditure Held | C134: =C131/($K26/12) ->  | D134: =D131/($K26/12) ->  | E134: =E131/($K26/12) ->  | F134: =ABS(F131/($F26/12)) ->  | H134: =H131/($K26/12) ->  | I134: =I131/($K26/12) ->  | J134: =J131/($K26/12) ->  | K134: =ABS(K131/($F26/12)) ->  | M134: =M131/($P26/12) ->  | N134: =N131/($P26/12) ->  | O134: =O131/($P26/12) ->  | P134: =P131/($P26/12) -> 
B136: Unrestricted Reserves as % of total | F136: =C131/F131 ->  | K136: =H131/K131 ->  | P136: =M131/P131 ->  | R136: =P136-K136 ->  | S136: =P136-F136 ->  | T136: =AVERAGE(P136,K136,F136) -> 
B138: Free Reserves (Exc. Designated Funds) | F138: =F129-SUM(D129:E129)-C98 ->  | K138: =K129-SUM(I129:J129)-H98 ->  | P138: =P129-SUM(N129:O129)-M98 ->  | R138: =P138-K138 ->  | S138: =P138-F138 ->  | T138: =AVERAGE(P138,K138,F138) -> 
B140: Months Unrestricted Exp. Held in Free Reserves | F140: =ABS(F138/(C26/12)) ->  | K140: =ABS(K138/(H26/12)) ->  | P140: =ABS(P138/(M26/12)) ->  | R140: =P140-K140 ->  | S140: =P140-F140 ->  | T140: =AVERAGE(P140,K140,F140) -> 
B142: Months Total Exp. Held in Free Reserves | F142: =ABS(F138/(F26/12)) ->  | K142: =ABS(K138/(K26/12)) ->  | P142: =ABS(P138/(P26/12)) ->  | R142: =P142-K142 ->  | S142: =P142-F142 ->  | T142: =AVERAGE(P142,K142,F142) -> 
B144: Debt Ratio (Excl. Pension Liabilities) | F144: =ABS(F121/F107) ->  | K144: =ABS(K121/K107) ->  | P144: =ABS(P121/P107) ->  | R144: =P144-K144 ->  | S144: =P144-F144 ->  | T144: =AVERAGE(P144,K144,F144) -> 
B146: Cash Flow and Liquidity
B148: Net Cash Flow From Operating Activities | F148: 0 | K148: 0 | P148: 0 | R148: =P148-K148 -> 0 | S148: =P148-F148 -> 0 | T148: =AVERAGE(P148,K148,F148) -> 0
B150: Interest Receivable | F150: 0 | K150: 0 | P150: 0 | R150: =P150-K150 -> 0 | S150: =P150-F150 -> 0 | T150: =AVERAGE(P150,K150,F150) -> 0
B151: Purchase of Tangible Fixed Assets | F151: 0 | K151: 0 | P151: 0 | R151: 0 | S151: 0 | T151: 0
B152: Proceeds From Sale of Tangible Fixed Assets | F152: 0 | K152: 0 | P152: 0 | R152: 0 | S152: 0 | T152: 0
B153: Other Cash Flows from Investing Activities | F153: 0 | K153: 0 | P153: 0 | R153: 0 | S153: 0 | T153: 0
B155: Net Cash Flows From Investing Activities | F155: =SUM(F150:F153) -> 0 | K155: =SUM(K150:K153) -> 0 | P155: =SUM(P150:P153) -> 0 | R155: =P155-K155 -> 0 | S155: =P155-F155 -> 0 | T155: =AVERAGE(P155,K155,F155) -> 0
B157: Cash Inflows From Borrowing | F157: 0 | K157: 0 | P157: 0 | R157: =P157-K157 -> 0 | S157: =P157-F157 -> 0 | T157: =AVERAGE(P157,K157,F157) -> 0
B158: Repayment of Borrowings | F158: 0 | K158: 0 | P158: 0 | R158: 0 | S158: 0 | T158: 0
B159: Other Cash Flows From Financing Activities | F159: 0 | K159: 0 | P159: 0 | R159: 0 | S159: 0 | T159: 0
B161: Net Cash Flows From Financing Activities | F161: =SUM(F157:F159) -> 0 | K161: =SUM(K157:K159) -> 0 | P161: =SUM(P157:P159) -> 0 | R161: =P161-K161 -> 0 | S161: =P161-F161 -> 0 | T161: =AVERAGE(P161,K161,F161) -> 0
B163: Net Increase/Decrease in Cash and Equivalents | F163: =SUM(F161,F155,F148) -> 0 | K163: =SUM(K161,K155,K148) -> 0 | P163: =SUM(P161,P155,P148) -> 0 | R163: =P163-K163 -> 0 | S163: =P163-F163 -> 0 | T163: =AVERAGE(P163,K163,F163) -> 0
B165: Cash and Equivalents Brought Forwards | F165: =A167 -> 0 | K165: =F167 -> 0 | P165: =K167 -> 0 | R165: =P165-K165 -> 0 | S165: =P165-F165 -> 0 | T165: =AVERAGE(P165,K165,F165) -> 0
B167: Cash and Equivalents Carried Forwards | F167: =F165+F163 -> 0 | K167: =K165+K163 -> 0 | P167: =P165+P163 -> 0 | R167: =P167-K167 -> 0 | S167: =P167-F167 -> 0 | T167: =AVERAGE(P167,K167,F167) -> 0
B169: Current Ratio | F169: =ABS(F105/F112) ->  | K169: =ABS(K105/K112) ->  | P169: =ABS(P105/P112) ->  | R169: =P169-K169 ->  | S169: =P169-F169 ->  | T169: =AVERAGE(P169,K169,F169) -> 
B171: Cash Ratio | F171: =ABS(F103/F112) ->  | K171: =ABS(K103/K112) ->  | P171: =ABS(P103/P112) -> 

Sheet Template b Explanation
B2: Due Diligence - Financial Analysis Justification Template b
B4: Metric | C4: Description | D4: RAG Rating | E4: Justification
B5: ='Template b'!B12 -> Turnover Ratio | C5: ='Template b'!C12 -> Ratio of company turnover to grant size | D5: R/A/G
B6: ='Template b'!B13 -> Operating Margin | C6: ='Template b'!C13 -> Percentage operating margin | D6: R/A/G
B7: ='Template b'!B14 -> Cash Ratio | C7: ='Template b'!C14 -> Ratio of cash and equivalents over liabilities | D7: R/A/G
B8: ='Template b'!B15 -> Debt Ratio | C8: ='Template b'!C15 -> Ratio of liabilities (exc. Pension) over total Assets | D8: R/A/G
B9: ='Template b'!B16 -> Current Acid Ratio | C9: ='Template b'!C16 -> Total current assets over Total current liabilities | D9: R/A/G
B10: ='Template b'!B17 -> Net Asset Value | C10: ='Template b'!C17 -> Total assets minus total liabilities | D10: R/A/G
B11: Other

Sheet Supporting Information >>

Sheet Template Checklist
B2: Due Diligence - Financial Analysis Checklist
B4: Area | C4: Consideration | D4: Further Detail | E4: Finding | F4: Potential Risk Area? (Y/N)
B5: Headline Income/Expenditure | C5: What has the organisation's end of year position been over the last three years? How do restricted and unrestricted funds compare? | D5: Surplus or deficit? Fluctuating or consistent? Trend in either direction? Any consistent deficit in unrestricted funds warrants further investigation.
C6: Is the end of year position significant as a % of income, or as a % of reserves for each fund? | D6: Significant surplus may indicate an inability to scale operational activity to match fundraising, or vice versa. A consistent deficit need not necessarily be concerning if it is of little consequence in the grand scheme.
C7: If the surplus/deficit position is significant, is there reasonable justification? | D7: Potential justifications such as a deliberate deficit to reduce reserves, or that the organisation is accumulating funds for capital expenditure.
B8: Review of Income | C8: Is income consistently dominated by one stream, or split across multiple areas? | D8: What is the % split across voluntary, generated, investment, and income from activities? How has this varied over the last three years?
C9: How reliable are the organisation's income streams? | D9: Does the % contribution of each stream fluctuate significantly each year? Are streams secure in the medium/long term, or at risk of withdrawal (government cuts, grant income reliant on conditions that cannot be met etc.)
C10: Are there trends across income streams over the last three years? | D10: Has the organisation's income seen a concerted shift in any particular direction? A shift towards trading activities makes forecasting considerably more difficult, an increase in grants may provide security in the short term, but may be limited to restricted funding, leaving core costs vulnerable.
C11: What percentage of income is from statutory sources? Is this income at risk from changes in policy? | D11: Is statutory funding in the form of a grant or payment for services? If payment for services then how secure are the service level agreements? How regularly are the agreements refreshed? Is funding reliant on achievement, and therefore vulnerable if conditions are not met? If a grant then what is the duration? Is the source of the funding itself vulnerable?
C12: What percentage of income is generated, i.e. from fundraising activities or investment? | D12: To what extent is the organisation self sufficient? How heavily is it reliant on other funding streams? If the most vulnerable funding streams were to fall away then what would the organisation's position be?
C13: What percentage of income is from legacies? | D13: Legacies can provide a significant income stream, but one that is highly unreliable. A string of high value legacies can distort income figures in the short term.
C14: What percentage of income is made up of gifts in kind? | D14: Are any of these gifts in kind vulnerable to withdrawal? How would this affect the cost base of the charity?
C15: What percentage of income is restricted vs unrestricted? | D15: Low levels of unrestricted income may leave the organisation unable to sufficiently cover core costs. This can have a significant impact on its effectiveness, and its ability to respond to emerging risks and opportunities.
C16: Does the organisation have a profitable income stream? | D16: If so is the margin significant? What is the overall trend in the margin? Has income from this stream increased or decreased in recent year, and has the margin remained the same throughout?
C17: Seek to understand the nature of any transfers between funds. | D17: Significant transfers from restricted to unrestricted funds may be cause for concern, however are justifiable in some circumstances such as if the restricted funding includes a cut to cover core costs. If the transfer is not justifiable then the organisation may be in breach of trust. Equally transfers between different restricted funds may be concerning.
B18: Review of Expenditure | C18: What percentage of expenditure is on charitable activities? | D18: It is expected that the majority of expenditure (~80%) should be on charitable activities. If this is not the case then you should seek to understand why.
C19: What is the rate of return for fundraising expenditure? | D19: Donated income from non-fundraising responsive activities should be excluded where possible. This may include donations from subsidiaries, legacies if not actively sought etc.
B20: Reserves | C20: Does the organisation maintain a reserves policy requiring at least 3 months ongoing expenditure to be held? Does the organisation confirm whether this policy is being met? | D20: 3 months would be considered a minimum acceptable position, more than a year may be excessive without justification (capital appeal or endowment). The key consideration here is "ongoing" expenditure. This would include all core costs, and charitable activity supported by the organisation itself. Expenditure the organisation carries out on behalf of another party (i.e. disseminating grant funding (Motability's former SVF)) should be separated if possible, as when funding ceases the grants programme immediately ends. Care should be taken to still consider staff costs associated with the program however, as these costs may well continue in the short term.
C21: What has the trend in the reserves position been over the last three years? | D21: Any significant trends should be justified, reserves should also increase in line with core activity if the charity is in a period of growth.
C22: How many months of expenditure are held in reserves? | D22: (Current Assets + Realisable Investments - Current Liabilities)/Average Monthly Expenditure Consider the above as to what can be classified as average monthly expenditure.
C23: What proportion of these reserves are restricted vs unrestricted, compared to the proportion of ongoing expenditure? | D23: High levels of restricted reserves may not reflect stability if unrestricted reserves cannot cover core costs.
C24: What is the organisation's level of free reserves? | D24: Total funds less restricted funds, endowments, fixed assets, and potentially designated funds depending on the designation. Consider carefully the makeup of the free reserves in question, a predominance of debtors and lack of cash at bank may indicate an inability to meet its short-term liabilities. Also bear in mind that while fixed assets are excluded, any borrowing associated with that asset is included, which can turn free reserves negative.
C25: Does the organisation have pension fund liabilities? | D25: If so, it may be appropriate to subtract the deficit from the numerator of the reserves calculation.
B26: Assets and Liabilities | C26: What is the relative split of asset types? | D26: Land, buildings and equipment, fixed asset investments, debtors, cash at bank etc. If significant fixed assets held in the form of land or buildings, have these been utilised appropriately to generate income?
C27: Is the return on cash and investments reasonable? | D27: Income from investments/(Cash + Investments) Should be slightly above current bank rate, significantly more may indicate excessive level of risk, significantly less may equally require further investigation.
C28: Has there been a trend in short term liabilities over the last three years? | D28: Increasing in proportion with other activities? Increasing with a decrease in activity?
C29: Compare the organisation's current and cash ratios. | D29: Current Ratio = Current Assets/Current Liabilities, Cash Ratio = Cash and Equivalents/Current Liabilities Ratios will differ considerably with circumstances/operating model, so a versus-self multi-year comparison is most informative. Cash ratio is more conservative liquidity measure, difference between the two highlights potential reliance on non-cash current assets such as debtors.
C30: What is the organisation's debt ratio? | D30: Total liabilities/Total assets A higher ratio indicates a less robust organisation, any ratio more than 1 shows that the organisation is entirely unable to cover the costs of its liabilities.
C31: Are any long term liabilities made up of Social Investments? | D31: If so seek to better understand the terms. Is this a loan or a bond? Who is the investor? Is this mixed motive or programme related investment?
C32: Does the organisation have significant pension liabilities? | D32: Does the organisation lay out how it intends to address these liabilities over the long term? Has action been taken already (increased contribution rates, closing the defined benefit scheme to new members, closing the scheme to future accrual)?
C33: Consider whether the fixed assets turnover ratio can be utilised. | D33: Income from trading or generated income/Fixed assets Consider appropriateness carefully - if in doubt consult with Finance. Potentially useful with modification to assess effective utilisation of new fixed assets. E.g. "Journeys provided/fixed assets" for a CT operator that has invested in additional vehicles.
B34: Cash Flow and Liquidity | C34: What was the overall movement in cash and cash equivalents (This year and over the last three years)? | D34: Seek to understand further any overall trend in the cash position over the last three years.
C35: What is the balance of cash and cash equivalents available across fund types? | D35: Lack of unrestricted cash and equivalents poses a considerable risk to the core operations of an organisation.
C36: What is the impact of the purchase/sale of fixed assets on cash flow? | D36: Has cash flow been generated from the sale of fixed assets? Are these assets being replaced? Using the sale of fixed assets to generate cash for operational expenditure is a potential red flag.
C37: Is the organisation covering short term cash requirements through financing? | D37: Consistent use of financing activity to generate cash suggests an issue with short-term cash flow.
C38: Do the organisation's management accounts indicate either concentrated income or expenditure over specific periods that may pose a cash flow problem? | D38: If the primary form of income is grants, all of which are provided at the beginning of the calendar year, then cash flow in other months may prove problematic. Compare any short term deficit figures to the overall cash and cash equivalents available.

Sheet Template b Worked Example
X1: v0.4
A5: Charity Name: | B5: Motability
A6: Date: | B6: 2020-06-25
C8: 2016/17 | H8: 2017/18 | M8: 2018/19 | R8: Total Funds
C9: Unrestricted £'000 | D9: Designated £'000 | E9: Restricted £'000 | F9: Total Funds £'000 | H9: Unrestricted £'000 | I9: Designated £'000 | J9: Restricted £'000 | K9: Total Funds £'000 | M9: Unrestricted £'000 | N9: Designated £'000 | O9: Restricted £'000 | P9: Total Funds £'000 | R9: Last Year Variance £'000 | S9: 3 Year Variance £'000 | T9: 3 Year Average £'000
B11: Headline Income/Expenditure
B13: Total Income | C13: 32243 | D13: 0 | E13: 21082 | F13: =SUM(C13:E13) -> 53325 | H13: 48881 | I13: 0 | J13: 23243 | K13: =SUM(H13:J13) -> 72124 | M13: 407490 | N13: 0 | O13: 21184 | P13: =SUM(M13:O13) -> 428674 | R13: =P13-K13 -> 356550 | S13: =P13-F13 -> 375349 | T13: =AVERAGE(P13,K13,F13) -> 184707.6667
B14: Total Expenditure | C14: -12192 | D14: 0 | E14: -106342 | F14: =SUM(C14:E14) -> -118534 | H14: -7391 | I14: 0 | J14: -17807 | K14: =SUM(H14:J14) -> -25198 | M14: -21195 | N14: 0 | O14: -16145 | P14: =SUM(M14:O14) -> -37340 | R14: =P14-K14 -> -12142 | S14: =P14-F14 -> 81194 | T14: =AVERAGE(P14,K14,F14) -> -60357.33333
B16: Net Income/Expenditure | C16: =SUM(C13:C14) -> 20051 | D16: =SUM(D13:D14) -> 0 | E16: =SUM(E13:E14) -> -85260 | F16: =SUM(C16:E16) -> -65209 | H16: =SUM(H13:H14) -> 41490 | I16: =SUM(I13:I14) -> 0 | J16: =SUM(J13:J14) -> 5436 | K16: =SUM(H16:J16) -> 46926 | M16: =SUM(M13:M14) -> 386295 | N16: =SUM(N13:N14) -> 0 | O16: =SUM(O13:O14) -> 5039 | P16: =SUM(M16:O16) -> 391334 | R16: =P16-K16 -> 344408 | S16: =P16-F16 -> 456543 | T16: =AVERAGE(P16,K16,F16) -> 124350.3333
B18: Taxation | C18: 0 | D18: 0 | E18: 0 | F18: =SUM(C18:E18) -> 0 | H18: 0 | I18: 0 | J18: 0 | K18: =SUM(H18:J18) -> 0 | M18: 0 | N18: 0 | O18: 0 | P18: =SUM(M18:O18) -> 0 | R18: =P18-K18 -> 0 | S18: =P18-F18 -> 0 | T18: =AVERAGE(P18,K18,F18) -> 0
B19: Gains/Losses on Investments | C19: 0 | D19: 0 | E19: 0 | F19: 0 | H19: -993 | I19: 0 | J19: -1610 | K19: -2603 | M19: 424 | N19: 0 | O19: -725 | P19: -301 | R19: =P19-K19 -> 2302 | S19: =P19-F19 -> -301 | T19: =AVERAGE(P19,K19,F19) -> -968
B20: Other Gains/Losses | C20: 0 | D20: 0 | E20: 790 | F20: 790 | H20: 0 | I20: 0 | J20: 1798 | K20: 1798 | M20: 0 | N20: 0 | O20: -1662 | P20: -1662 | R20: -3460 | S20: -2452 | T20: 308.6666667
B21: Transfer Between Funds | C21: 0 | D21: 0 | E21: 0 | F21: 0 | H21: 0 | I21: 0 | J21: 0 | K21: 0 | M21: -1891 | N21: 0 | O21: 1891 | P21: 0 | R21: 0 | S21: 0 | T21: 0
B23: Net Movement in Funds | C23: =SUM(C18:C21,C16) -> 20051 | D23: =SUM(D18:D21,D16) -> 0 | E23: =SUM(E18:E21,E16) -> -84470 | F23: =SUM(C23:E23) -> -64419 | H23: =SUM(H18:H21,H16) -> 40497 | I23: =SUM(I18:I21,I16) -> 0 | J23: =SUM(J18:J21,J16) -> 5624 | K23: =SUM(H23:J23) -> 46121 | M23: =SUM(M18:M21,M16) -> 384828 | N23: =SUM(N18:N21,N16) -> 0 | O23: =SUM(O18:O21,O16) -> 4543 | P23: =SUM(M23:O23) -> 389371 | R23: =P23-K23 -> 343250 | S23: =P23-F23 -> 453790 | T23: =AVERAGE(P23,K23,F23) -> 123691
B25: Funds Brought Forwards | C25: 874 | D25: 0 | E25: 126449 | F25: =SUM(C25:E25) -> 127323 | H25: =C27 -> 20925 | I25: =D27 -> 0 | J25: =E27 -> 41979 | K25: =SUM(H25:J25) -> 62904 | M25: =H27 -> 61422 | N25: =I27 -> 0 | O25: =J27 -> 47603 | P25: =SUM(M25:O25) -> 109025 | R25: =P25-K25 -> 46121 | S25: =P25-F25 -> -18298 | T25: =AVERAGE(P25,K25,F25) -> 99750.66667
B26: Net Movement in Funds | C26: =C23 -> 20051 | D26: =D23 -> 0 | E26: -84470 | F26: -64419 | H26: =H23 -> 40497 | I26: 0 | J26: 5624 | K26: 46121 | M26: =M23 -> 384828 | N26: 0 | O26: 4543 | P26: 389371 | R26: 343250 | S26: 453790 | T26: 123691
B27: Funds Carried forwards | C27: =C25+C26 -> 20925 | D27: =D25+D26 -> 0 | E27: =E25+E26 -> 41979 | F27: =F25+F26 -> 62904 | H27: =H25+H26 -> 61422 | I27: =I25+I26 -> 0 | J27: =J25+J26 -> 47603 | K27: 109025 | M27: =M25+M26 -> 446250 | N27: =N25+N26 -> 0 | O27: =O25+O26 -> 52146 | P27: 498396 | R27: 389371 | S27: 435492 | T27: 223441.6667
B29: Net Inc/Exp as % of Total Income | C29: =C16/C13 -> 0.621871414 | D29: =D16/D13 ->  | E29: -4.044208329 | F29: -1.222859822 | H29: =H16/H13 -> 0.8487960557 | I29: =I16/I13 ->  | J29: 0.2338768662 | K29: 0.6506294715 | M29: =M16/M13 -> 0.9479864537 | N29: =N16/N13 ->  | O29: 0.2378682024 | P29: 0.9128941807 | R29: =P29-K29 -> 0.2622647092 | S29: =P29-F29 -> 2.135754003 | T29: =AVERAGE(P29,K29,F29) -> 0.1135546101
B30: Net Inc/Exp as % of Funds Carried | C30: =C16/C27 -> 0.9582317802 | D30: =D16/D27 ->  | E30: -2.031015508 | F30: -1.036643139 | H30: =H16/H27 -> 0.6754908665 | I30: =I16/I27 ->  | J30: 0.1141944835 | K30: 0.4304150424 | M30: =M16/M27 -> 0.8656470588 | N30: =N16/N27 ->  | O30: 0.09663253174 | P30: 0.7851868795 | R30: 0.3547718371 | S30: 1.821830018 | T30: 0.05965292773
B32: Headline Trends
B34: % Annual Income Growth | C34: =(32243-2737)/2737 -> 10.78041651 | D34: 0 | E34: =(21082-64396)/64396 -> -0.6726194174 | F34: =(53325-67133)/67133 -> -0.2056812596 | H34: =(H13/C13)-1 -> 0.5160189809 | I34: =(I13/D13)-1 ->  | J34: =(J13/E13)-1 -> 0.1025045062 | K34: 0.3525363338 | M34: =(M13/H13)-1 -> 7.336367914 | N34: =(N13/I13)-1 ->  | O34: =(O13/J13)-1 -> -0.08858581078 | P34: =(P13/K13)-1 -> 4.943569408 | R34: =P34-K34 -> 4.591033074 | S34: =P34-F34 -> 5.149250668 | T34: =AVERAGE(P34,K34,F34) -> 1.696808161
B35: % Annual Expenditure Growth | C35: =(12192-29848)/2984 -> -5.91689008 | D35: 0 | E35: =(106342-63100)/63100 -> 0.6852931854 | F35: =(118534-66084)/66084 -> 0.7936868228 | H35: =(H14/C14)-1 -> -0.3937828084 | J35: -0.8325496981 | K35: -0.7874196433 | M35: =(M14/H14)-1 -> 1.867676904 | N35: =(N14/I14)-1 ->  | O35: =(O14/J14)-1 -> -0.0933340821 | P35: =(P14/K14)-1 -> 0.48186364 | R35: 1.269283283 | S35: -0.3118231829 | T35: 0.1627102732
B36: % Fund Growth | C36: =(20925-874)/874 -> 22.9416476 | D36: 0 | E36: =(41979-126449)/126449 -> -0.6680163544 | F36: =(62904-127323)/127323 -> -0.5059494357 | H36: =(H27/C27)-1 -> 1.935340502 | I36: =(I27/D27)-1 ->  | J36: 0.1339717478 | K36: 0.7331966171 | M36: =(M27/H27)-1 -> 6.265312103 | N36: =(N27/I27)-1 ->  | O36: 0.09543516165 | P36: 3.571391883 | R36: 2.838195266 | S36: 4.077341318 | T36: 1.266213021
B38: Income Review
B40: Fundraised Income | C40: 1329 | D40: 0 | E40: 2073 | F40: =SUM(C40:E40) -> 3402 | H40: 464 | I40: 0 | J40: 24 | K40: =SUM(H40:J40) -> 488 | M40: 97 | N40: 0 | O40: 15 | P40: =SUM(M40:O40) -> 112 | R40: =P40-K40 -> -376 | S40: =P40-F40 -> -3290 | T40: =AVERAGE(P40,K40,F40) -> 1334
B41: Other Voluntary Income | C41: 30000 | D41: 0 | E41: 6827 | F41: 36827 | H41: 46793 | I41: 0 | J41: 11762 | K41: 58555 | M41: 405052 | N41: 0 | O41: 10345 | P41: 415397 | R41: 356842 | S41: 378570 | T41: 170259.6667
B42: Charitable Activities | C42: 0 | D42: 0 | E42: 9750 | F42: 9750 | H42: 0 | I42: 0 | J42: 9440 | K42: 9440 | M42: 0 | N42: 0 | O42: 9334 | P42: 9334 | R42: -106 | S42: -416 | T42: 9508
B43: Other Trading Activities | C43: 908 | D43: 0 | E43: 0 | F43: 908 | H43: 546 | I43: 0 | J43: 0 | K43: 546 | M43: 540 | N43: 0 | O43: 0 | P43: 540 | R43: -6 | S43: -368 | T43: 664.6666667
B44: Investments | C44: 6 | D44: 0 | E44: 2423 | F44: 2429 | H44: 1078 | I44: 0 | J44: 2017 | K44: 3095 | M44: 1801 | N44: 0 | O44: 1482 | P44: 3283 | R44: 188 | S44: 854 | T44: 2935.666667
B45: Other Income | C45: 0 | D45: 0 | E45: 9 | F45: 9 | H45: 0 | I45: 0 | J45: 0 | K45: 0 | M45: 0 | N45: 0 | O45: 8 | P45: 8 | R45: 8 | S45: -1 | T45: 5.666666667
B47: Total Income | C47: =SUM(C40:C45) -> 32243 | D47: 0 | E47: =SUM(E40:E45) -> 21082 | F47: 53325 | H47: =SUM(H40:H45) -> 48881 | I47: 0 | J47: =SUM(J40:J45) -> 23243 | K47: 72124 | M47: =SUM(M40:M45) -> 407490 | N47: 0 | O47: =SUM(O40:O45) -> 21184 | P47: 428674 | R47: 356550 | S47: 375349 | T47: 184707.6667
B49: Income as % of Fund Income
B51: Fundraised Income | C51: =C40/C$47 -> 0.04121824892 | E51: 0.09833032919 | F51: 0.06379746835 | H51: =H40/H$47 -> 0.009492440826 | J51: 0.001032568945 | K51: 0.006766125007 | M51: =M40/M$47 -> 0.0002380426514 | O51: 0.000708081571 | P51: 0.0002612708025 | R51: =P51-K51 -> -0.006504854204 | S51: =P51-F51 -> -0.06353619755 | T51: =AVERAGE(P51,K51,F51) -> 0.02360828805
B52: Other Voluntary Income | C52: 0.9304345129 | E52: 0.3238307561 | F52: 0.6906141585 | H52: 0.9572840163 | J52: 0.5060448307 | K52: 0.8118656758 | M52: 0.9940170311 | O52: 0.4883402568 | P52: 0.969027746 | R52: 0.1571620702 | S52: 0.2784135876 | T52: 0.8238358601
B53: Charitable Activities | C53: =C42/C$47 -> 0 | E53: 0.4624798406 | F53: =F42/F$47 -> 0.1828410689 | H53: =H42/H$47 -> 0 | J53: 0.4061437852 | K53: =K42/K$47 -> 0.1308856969 | M53: =M42/M$47 -> 0 | O53: 0.4406155589 | P53: =P42/P$47 -> 0.02177412206 | R53: -0.1091115748 | S53: -0.1610669469 | T53: 0.1118336293
B54: Other Trading Activities | C54: =C43/C$47 -> 0.02816115126 | E54: 0 | F54: =F43/F$47 -> 0.01702766057 | H54: =H43/H$47 -> 0.01116998425 | J54: 0 | K54: =K43/K$47 -> 0.007570295602 | M54: =M43/M$47 -> 0.001325185894 | O54: 0 | P54: =P43/P$47 -> 0.001259698512 | R54: -0.00631059709 | S54: -0.01576796206 | T54: 0.008619218229
B55: Investments | C55: =C44/C$47 -> 0.0001860869026 | E55: 0.1149321696 | F55: 0.04555086732 | H55: =H44/H$47 -> 0.02205355864 | J55: 0.08677881513 | K55: 0.04291220676 | M55: =M44/M$47 -> 0.004419740362 | O55: 0.06995845921 | P55: 0.007658500399 | R55: -0.03525370636 | S55: -0.03789236692 | T55: 0.03204052483
B56: Other Income | C56: 0 | E56: 0.0004269044683 | F56: 0.0001687763713 | H56: 0 | J56: 0 | K56: 0 | M56: 0 | O56: 0.0003776435045 | P56: 1.866220018e-05 | R56: 1.866220018e-05 | S56: -0.0001501141711 | T56: 6.247952383e-05
B58: Fund Income as % of Total Income | C58: =C47/$F47 -> 0.6046507267 | D58: =D47/$F47 -> 0 | E58: 0.3953492733 | F58: =F47/$F47 -> 1 | H58: =H47/$K47 -> 0.6777355665 | I58: =I47/$K47 -> 0 | J58: 0.3222644335 | K58: =K47/$K47 -> 1 | M58: =M47/$P47 -> 0.9505824939 | N58: =N47/$P47 -> 0 | O58: 0.04941750608 | P58: 1 | R58: =P58-K58 -> 0 | S58: =P58-F58 -> 0 | T58: =AVERAGE(P58,K58,F58) -> 1
B60: Expenditure Review
B62: Fundraising Expenditure | C62: -194 | D62: 0 | E62: 0 | F62: =SUM(C62:E62) -> -194 | H62: -49 | I62: 0 | J62: 0 | K62: =SUM(H62:J62) -> -49 | M62: -33 | N62: 0 | O62: 0 | P62: =SUM(M62:O62) -> -33 | R62: =P62-K62 -> 16 | S62: =P62-F62 -> 161 | T62: =AVERAGE(P62,K62,F62) -> -92
B63: Other 'Raising Funds' Expenditure | C63: -558 | D63: 0 | E63: -18 | F63: -576 | H63: -377 | J63: -146 | K63: -523 | M63: -247 | N63: 0 | O63: -123 | P63: -370 | R63: 153 | S63: 206 | T63: -489.6666667
B64: Charitable Activity Expenditure | C64: -11440 | E64: -105803 | F64: -117243 | H64: -6965 | I64: 0 | J64: -17661 | K64: -24626 | M64: -20915 | N64: 0 | O64: -16022 | P64: -36937 | R64: -12311 | S64: 80306 | T64: -59602
B65: Other Expenditure | C65: 0 | D65: 0 | E65: -521 | F65: -521 | H65: 0 | I65: 0 | J65: 0 | K65: 0 | M65: 0 | N65: 0 | O65: 0 | P65: 0 | R65: 0 | S65: 521 | T65: -173.6666667
B67: Total Expenditure | C67: =SUM(C62:C65) -> -12192 | D67: =SUM(D62:D65) -> 0 | E67: =SUM(E62:E65) -> -106342 | F67: =SUM(C67:E67) -> -118534 | H67: =SUM(H62:H65) -> -7391 | I67: =SUM(I62:I65) -> 0 | J67: =SUM(J62:J65) -> -17807 | K67: -25198 | M67: =SUM(M62:M65) -> -21195 | N67: =SUM(N62:N65) -> 0 | O67: =SUM(O62:O65) -> -16145 | P67: =SUM(P62:P65) -> -37340 | R67: -12142 | S67: 81194 | T67: -60357.33333
B69: Expenditure as % of Total Fund Expenditure
B71: Fundraising Expenditure | C71: =C62/C$67 -> 0.01591207349 | E71: 0 | F71: 0.001636661211 | H71: =H62/H$67 -> 0.006629684752 | J71: 0 | K71: 0.001944598778 | M71: =M62/M$67 -> 0.001556970984 | O71: 0 | P71: 0.0008837707552 | R71: =P71-K71 -> -0.001060828022 | S71: =P71-F71 -> -0.0007528904559 | T71: =AVERAGE(P71,K71,F71) -> 0.001488343581
B72: Other 'Raising Funds' Expenditure | C72: 0.04576771654 | E72: 0.000169265201 | F72: 0.004859365245 | H72: 0.05100798268 | J72: 0.008199022856 | K72: 0.02075561553 | M72: 0.01165369191 | O72: 0.007618457727 | P72: 0.009908944831 | R72: -0.01084667069 | S72: 0.005049579586 | T72: =AVERAGE(P72,K72,F72) -> 0.01184130853
B73: Charitable Activity Expenditure | C73: 0.93832021 | E73: 0.9949314476 | F73: 0.9891086102 | H73: 0.9423623326 | J73: 0.9918009771 | K73: 0.9772997857 | M73: 0.9867893371 | O73: 0.9923815423 | P73: 0.9892072844 | R73: 0.01190749872 | S73: 9.86742257e-05 | T73: 0.9852052268
B74: Other Expenditure | C74: 0 | E74: 0.004899287205 | F74: 0.004395363356 | H74: 0 | J74: 0 | K74: 0 | M74: 0 | O74: 0 | P74: 0 | R74: 0 | S74: -0.004395363356 | T74: 0.001465121119
B76: Fund Expenditure as % of Total Expenditure | C76: =C67/$F67 -> 0.1028565644 | D76: =D67/$F67 -> 0 | E76: 0.8971434356 | F76: 1 | H76: =H67/$K67 -> 0.2933169299 | I76: =I67/$K67 -> 0 | J76: 0.7066830701 | K76: 1 | M76: =M67/$P67 -> 0.5676218532 | N76: =N67/$P67 -> 0 | O76: 0.4323781468 | P76: 1 | R76: =P76-K76 -> 0 | S76: =P76-F76 -> 0 | T76: =AVERAGE(P76,K76,F76) -> 1
B78: Fundraising Ratio | C78: =ABS(C40/C62) -> 6.850515464 | D78: =ABS(D40/D62) ->  | F78: =ABS(F40/F62) -> 17.53608247 | H78: =H40/H62 -> -9.469387755 | I78: =I40/I62 ->  | J78: =J40/J62 ->  | K78: -9.959183673 | M78: =M40/M62 -> -2.939393939 | N78: =N40/N62 ->  | P78: -3.393939394 | R78: =P78-K78 -> 6.56524428 | S78: =P78-F78 -> -20.93002187 | T78: =AVERAGE(P78,K78,F78) -> 1.394319802
B80: Assets and Liabilities
B82: Tangible Fixed Assets | F82: 2409 | K82: 2640 | P82: 2370 | R82: =P82-K82 -> -270 | S82: =P82-F82 -> -39 | T82: =AVERAGE(P82,K82,F82) -> 2473
B83: Intangible Fixed Assets | F83: 0 | K83: 0 | P83: 0 | R83: 0 | S83: 0 | T83: 0
B84: Non-Current Asset Investments | F84: 0 | K84: 0 | P84: 0 | R84: 0 | S84: 0 | T84: 0
B86: Total Fixed Assets | F86: =SUM(F82:F84) -> 2409 | K86: =SUM(K82:K84) -> 2640 | P86: =SUM(P82:P84) -> 2370 | R86: =P86-K86 -> -270 | S86: =P86-F86 -> -39 | T86: =AVERAGE(P86,K86,F86) -> 2473
B88: Debtors | F88: 5954 | K88: 12772 | P88: 15703 | R88: =P88-K88 -> 2931 | S88: =P88-F88 -> 9749 | T88: =AVERAGE(P88,K88,F88) -> 11476.33333
B89: Current Asset Investments | F89: 124094 | K89: 130931 | P89: 407336 | R89: 276405 | S89: 283242 | T89: 220787
B90: Other Current Assets | F90: 3000 | K90: 2000 | P90: 1000 | R90: -1000 | S90: -2000 | T90: 2000
B91: Cash and Cash Equivalents | F91: 28358 | K91: 24318 | P91: 118102 | R91: =P91-K91 -> 93784 | S91: =P91-F91 -> 89744 | T91: =AVERAGE(P91,K91,F91) -> 56926
B93: Total Current Assets | F93: =SUM(F88:F91) -> 161406 | K93: =SUM(K88:K91) -> 170021 | P93: =SUM(P88:P91) -> 542141 | R93: =P93-K93 -> 372120 | S93: =P93-F93 -> 380735 | T93: =AVERAGE(P93,K93,F93) -> 291189.3333
B95: Total Assets | F95: =SUM(F86,F93) -> 163815 | K95: =SUM(K86,K93) -> 172661 | P95: =SUM(P86,P93) -> 544511 | R95: =P95-K95 -> 371850 | S95: =P95-F95 -> 380696 | T95: =AVERAGE(P95,K95,F95) -> 293662.3333
B97: Creditors: Amounts due within one year | F97: -15965 | K97: -18552 | P97: -25992 | R97: =P97-K97 -> -7440 | S97: =P97-F97 -> -10027 | T97: =AVERAGE(P97,K97,F97) -> -20169.66667
B98: Other Current Liabilities | F98: 0 | K98: 0 | P98: 0 | R98: 0 | S98: 0 | T98: 0
B100: Total Current Liabilities | F100: =SUM(F97:F98) -> -15965 | K100: =SUM(K97:K98) -> -18552 | P100: =SUM(P97:P98) -> -25992 | R100: =P100-K100 -> -7440 | S100: =P100-F100 -> -10027 | T100: =AVERAGE(P100,K100,F100) -> -20169.66667
B102: Creditors: Amounts falling due after one year | F102: -82 | K102: -94 | P102: -97 | R102: =P102-K102 -> -3 | S102: =P102-F102 -> -15 | T102: =AVERAGE(P102,K102,F102) -> -91
B103: Other Non-Current Liabilities | F103: 0 | K103: 0 | P103: 0 | R103: 0 | S103: 0 | T103: 0
B105: Total Non-Current Liabilities | F105: =SUM(F102:F103) -> -82 | K105: =SUM(K102:K103) -> -94 | P105: =SUM(P102:P103) -> -97 | R105: =P105-K105 -> -3 | S105: =P105-F105 -> -15 | T105: =AVERAGE(P105,K105,F105) -> -91
B107: Provisions | F107: -79028 | K107: -41951 | P107: -16326 | R107: =P107-K107 -> 25625 | S107: =P107-F107 -> 62702 | T107: =AVERAGE(P107,K107,F107) -> -45768.33333
B109: Total Liabilities - Excluding Pension | F109: =SUM(F105,F100,F107) -> -95075 | K109: =SUM(K105,K100,K107) -> -60597 | P109: =SUM(P105,P100,P107) -> -42415 | R109: =P109-K109 -> 18182 | S109: =P109-F109 -> 52660 | T109: =AVERAGE(P109,K109,F109) -> -66029
B111: Total Assets Less Liabilities - Excl. Pension | F111: =F95+F109 -> 68740 | K111: =K95+K109 -> 112064 | P111: =P95+P109 -> 502096 | R111: =P111-K111 -> 390032 | S111: =P111-F111 -> 433356 | T111: =AVERAGE(P111,K111,F111) -> 227633.3333
B113: Pension Liability | F113: -5836 | K113: -3039 | P113: -3700 | R113: =P113-K113 -> -661 | S113: =P113-F113 -> 2136 | T113: =AVERAGE(P113,K113,F113) -> -4191.666667
B115: Total Net Assets | F115: =F111+F113 -> 62904 | K115: =K111+K113 -> 109025 | P115: =P111+P113 -> 498396 | R115: =P115-K115 -> 389371 | S115: =P115-F115 -> 435492 | T115: =AVERAGE(P115,K115,F115) -> 223441.6667
B117: Total Funds | C117: =C27 -> 20925 | D117: =D27 -> 0 | E117: =E27 -> 41979 | F117: =SUM(C117:E117) -> 62904 | H117: =H27 -> 61422 | I117: =I27 -> 0 | J117: =J27 -> 47603 | K117: =SUM(H117:J117) -> 109025 | M117: =M27 -> 446250 | N117: =N27 -> 0 | O117: =O27 -> 52146 | P117: =SUM(M117:O117) -> 498396 | R117: =P117-K117 -> 389371 | S117: =P117-F117 -> 435492 | T117: =AVERAGE(P117,K117,F117) -> 223441.6667
B119: Basic Reserves (Cur. Assets - Cur. Liabilities) | C119: =C93-C100 -> 0 | D119: =D93-D100 -> 0 | E119: =E93-E100 -> 0 | F119: =F93-F100 -> 177371 | H119: =H93-H100 -> 0 | I119: =I93-I100 -> 0 | J119: =J93-J100 -> 0 | K119: =K93-K100 -> 188573 | M119: =M93-M100 -> 0 | N119: =N93-N100 -> 0 | O119: =O93-O100 -> 0 | P119: =P93-P100 -> 568133 | R119: =P119-K119 -> 379560 | S119: =P119-F119 -> 390762 | T119: =AVERAGE(P119,K119,F119) -> 311359
B121: Months of Fund Expenditure Held | C121: =C119/(C14/12) -> 0 | D121: =D119/(D14/12) ->  | E121: =E119/(E14/12) -> 0 | F121: =ABS(F119/(F14/12)) -> 17.95646819 | H121: =H119/(H14/12) -> 0 | I121: =I119/(I14/12) ->  | J121: =J119/(J14/12) -> 0 | K121: =ABS(K119/(K14/12)) -> 89.80379395 | M121: =M119/(M14/12) -> 0 | N121: =N119/(N14/12) ->  | O121: =O119/(O14/12) -> 0 | P121: =P119/(P14/12) -> -182.5815747 | R121: =P121-K121 -> -272.3853687 | S121: =P121-F121 -> -200.5380429 | T121: =AVERAGE(P121,K121,F121) -> -24.94043753
B122: Months of Total Expenditure Held | C122: =C119/($F14/12) -> 0 | D122: =D119/($F14/12) -> 0 | E122: =E119/($F14/12) -> 0 | F122: =ABS(F119/($F14/12)) -> 17.95646819 | H122: =H119/($K14/12) -> 0 | I122: =I119/($K14/12) -> 0 | J122: =J119/($K14/12) -> 0 | K122: =ABS(K119/($F14/12)) -> 19.09052255 | M122: =M119/($P14/12) -> 0 | N122: =N119/($P14/12) -> 0 | O122: =O119/($P14/12) -> 0 | P122: =P119/($P14/12) -> -182.5815747 | R122: -201.6720973 | S122: -200.5380429 | T122: -48.51152799
B124: Unrestricted Reserves as % of total | F124: =F119/F119 -> 1 | K124: =H119/K119 -> 0 | P124: =M119/P119 -> 0 | R124: =P124-K124 -> 0 | S124: =P124-F124 -> -1 | T124: =AVERAGE(P124,K124,F124) -> 0.3333333333
B126: Free Reserves (Exc. Designated Funds) | F126: =F117-SUM(D117:E117)-C86 -> 20925 | K126: =K117-SUM(I117:J117)-H86 -> 61422 | P126: =P117-SUM(N117:O117)-M86 -> 446250 | R126: =P126-K126 -> 384828 | S126: =P126-F126 -> 425325 | T126: =AVERAGE(P126,K126,F126) -> 176199
B128: Months Unrestricted Exp. Held in Free Reserves | F128: =ABS(F126/(C14/12)) -> 20.59547244 | K128: =ABS(K126/(H14/12)) -> 99.72452983 | P128: =ABS(P126/(M14/12)) -> 252.6539278 | R128: =P128-K128 -> 152.929398 | S128: =P128-F128 -> 232.0584554 | T128: =AVERAGE(P128,K128,F128) -> 124.3246434
B130: Months Total Exp. Held in Free Reserves | F130: =ABS(F126/(F14/12)) -> 2.118379537 | K130: =ABS(K126/(K14/12)) -> 29.25089293 | P130: =ABS(P126/(P14/12)) -> 143.4118907 | R130: =P130-K130 -> 114.1609978 | S130: =P130-F130 -> 141.2935112 | T130: =AVERAGE(P130,K130,F130) -> 58.26038773
B132: Debt Ratio (Excl. Pension Liabilities) | F132: =ABS(F109/F95) -> 0.5803803071 | K132: =ABS(K109/K95) -> 0.3509593944 | P132: =ABS(P109/P95) -> 0.0778955797 | R132: =P132-K132 -> -0.2730638147 | S132: =P132-F132 -> -0.5024847274 | T132: =AVERAGE(P132,K132,F132) -> 0.3364117604
B134: Cash Flow and Liquidity
B136: Net Cash Flow From Operating Activities | F136: -8517 | K136: -7345 | P136: 366262 | R136: =P136-K136 -> 373607 | S136: =P136-F136 -> 374779 | T136: =AVERAGE(P136,K136,F136) -> 116800
B138: Interest Receivable | F138: 187 | K138: 76 | P138: 524 | R138: =P138-K138 -> 448 | S138: =P138-F138 -> 337 | T138: =AVERAGE(P138,K138,F138) -> 262.3333333
B139: Purchase of Tangible Fixed Assets | F139: -305 | K139: -790 | P139: -364 | R139: 426 | S139: -59 | T139: -486.3333333
B140: Proceeds From Sale of Tangible Fixed Assets | F140: 9 | K140: 0 | P140: 8 | R140: 8 | S140: -1 | T140: 5.666666667
B141: Other Cash Flows from Investing Activities | F141: 16842 | K141: 4019 | P141: =-276405+1000+2759 -> -272646 | R141: -276665 | S141: -289488 | T141: -83928.33333
B143: Net Cash Flows From Investing Activities | F143: =SUM(F138:F141) -> 16733 | K143: =SUM(K138:K141) -> 3305 | P143: =SUM(P138:P141) -> -272478 | R143: =P143-K143 -> -275783 | S143: =P143-F143 -> -289211 | T143: =AVERAGE(P143,K143,F143) -> -84146.66667
B145: Cash Inflows From Borrowing | F145: 0 | K145: 0 | P145: 0 | R145: =P145-K145 -> 0 | S145: =P145-F145 -> 0 | T145: =AVERAGE(P145,K145,F145) -> 0
B146: Repayment of Borrowings | F146: 0 | K146: 0 | P146: 0 | R146: 0 | S146: 0 | T146: 0
B147: Other Cash Flows From Financing Activities | F147: 0 | K147: 0 | P147: 0 | R147: 0 | S147: 0 | T147: 0
B149: Net Cash Flows From Financing Activities | F149: =SUM(F145:F147) -> 0 | K149: =SUM(K145:K147) -> 0 | P149: =SUM(P145:P147) -> 0 | R149: =P149-K149 -> 0 | S149: =P149-F149 -> 0 | T149: =AVERAGE(P149,K149,F149) -> 0
B151: Net Increase/Decrease in Cash and Equivalents | F151: =SUM(F149,F143,F136) -> 8216 | K151: =SUM(K149,K143,K136) -> -4040 | P151: =SUM(P149,P143,P136) -> 93784 | R151: =P151-K151 -> 97824 | S151: =P151-F151 -> 85568 | T151: =AVERAGE(P151,K151,F151) -> 32653.33333
B153: Cash and Equivalents Brought Forwards | F153: 20142 | K153: =F155 -> 28358 | P153: =K155 -> 24318 | R153: =P153-K153 -> -4040 | S153: =P153-F153 -> 4176 | T153: =AVERAGE(P153,K153,F153) -> 24272.66667
B155: Cash and Equivalents Carried Forwards | F155: =F153+F151 -> 28358 | K155: =K153+K151 -> 24318 | P155: =P153+P151 -> 118102 | R155: =P155-K155 -> 93784 | S155: =P155-F155 -> 89744 | T155: =AVERAGE(P155,K155,F155) -> 56926
B157: Current Ratio | F157: =ABS(F93/F100) -> 10.1099906 | K157: =ABS(K93/K100) -> 9.164564467 | P157: =ABS(P93/P100) -> 20.85799477 | R157: =P157-K157 -> 11.6934303 | S157: =P157-F157 -> 10.74800416 | T157: =AVERAGE(P157,K157,F157) -> 13.37751661
B159: Cash Ratio | F159: =ABS(F91/F100) -> 1.77626057 | K159: =ABS(K91/K100) -> 1.31080207 | P159: =ABS(P91/P100) -> 4.543782702 | R159: 3.232980633 | S159: 2.767522132 | T159: 2.543615114

Sheet Ratio Calculations
B2: Ratio Calculation Detail
B4: Ratio | C4: Calculation Method
B5: Turnover Ratio = Revenue / Grant Funding Received | C5: Revenue can be found on the face of standard financial statements. It should exclude the entity’s share of the revenue of joint ventures or associates.
C6: Grant funding is the total grant, multiplied by percentage partner.
B7: Operating Margin = Operating Profit / Revenue | C7: All figures required can be found on the face of standard financial statements. Figures for Operating Profit and Revenue should exclude the entity’s share of the results of joint ventures or associates.
B8: Cash Ratio = Cash and cash equivalents / current liabilities | C8: All figures required can be found on the face of standard financial statements.
B9: Debt Ratio = (Total Liabilities - Pension Liabilities) / (Total Assets - Pension Assets) | C9: All figures required can be found on the face of standard financial statements.
B10: Acid Ratio = (Current Assets - Inventories) / Current Liabilities | C10: All figures required can be found on the face of standard financial statements.
B11: Net Assets | C11: Balance should be displayed on the face of the balance sheet, and represents shareholders funds.
B12: Net Debt to EBITDA Ratio = Net Debt / EBITDA | C12: Majority of elements likely to be found in standard financial statements, further definitions below:
C13: Net Debt = Bank overdrafts + Loans and borrowings, including balances owed to other group members + Finance leases + Deferred consideration payable – Cash and cash equivalents, including short-term financial investments
C14: EBITDA = Operating profit + Depreciation charge + Amortisation charge
B15: Net Debt + Net Pension to EBITDA Ratio = (Net Debt + Net Pension Deficit)/EBITDA | C15: Majority of elements likely to be found in standard financial statements, further definitions below:
C16: Net Debt = Bank overdrafts + Loans and borrowings, including balances owed to other group members + Finance leases + Deferred consideration payable – Cash and cash equivalents, including short-term financial investments
C17: Net Pension Deficit = Retirement Benefit Obligations – Retirement Benefit Assets
C18: EBITDA = Operating profit + Depreciation charge + Amortisation charge
B19: Interest Cover = Earnings Before Interest and Tax / Net Interest Paid | C19: Majority of elements likely to be found in standard financial statements, further definitions below:
C20: Earnings before interest and tax = Operating profit
C21: Net interest paid = Interest paid - interest received

Sheet Thresholds
B2: Financial Thresholds
D3: Red | E3: Amber | F3: Green
C4: Turnover Ratio | D4: 1.5 | F4: 2 | G4: Higher the better
C5: Operating Margin | D5: 0.05 | F5: 0.1 | G5: Higher the better
C6: Cash Ratio | D6: 0.05 | F6: 0.15 | G6: Higher the better
C7: Debt Ratio | D7: 1.2 | F7: 1 | G7: Lower the better
C8: Current Acid Ratio | D8: 0.8 | F8: 1 | G8: Higher the better
C9: Net Asset Value | D9: 0 | F9: 0 | G9: Higher the better
